fUSD/lending_fUSD_20260130
["ID","MTS","AMOUNT","RATE_DAILY","PERIOD"]
[404042568,1769777423556,-1197.91,0.00043287,120]
[404042569,1769777423618,-500.0,0.00043287,120]
[404042570,1769777423682,-1054.35,0.00043287,120]
[404042571,1769777423746,-500.0,0.00043287,120]
[404042572,1769777423808,-903.56,0.00043287,120]
[404042573,1769777423869,-730.81668547,0.00043287,120]
[404042574,1769777423930,-1197.91,0.00043287,120]
[404042575,1769777423991,-500.0,0.00043287,120]
[404042576,1769777424054,-1054.35,0.00043287,120]
[404042577,1769777424117,-500.0,0.00043287,120]
[404042578,1769777424179,-1197.91,0.00043287,120]
[404042579,1769777424239,-903.56,0.00043287,120]
[404042580,1769777424301,-500.0,0.00043287,120]
[404042581,1769777424363,-1054.35,0.00043287,120]
[404042582,1769777424425,-500.0,0.00043287,120]
[404042583,1769777424488,-903.56,0.00043287,120]
[404042584,1769777424550,-500.0,0.00043287,120]
[404042585,1769777424610,-716.6,0.00043287,120]
[404042586,1769777424669,-1197.91,0.00043287,120]
[404042587,1769777424733,-1054.35,0.00043287,120]
[404042588,1769777424796,-500.0,0.00043287,120]
[404042589,1769777424861,-903.56,0.00043287,120]
[404042590,1769777424928,-500.0,0.00043287,120]
[404042591,1769777424991,-716.6,0.00043287,120]
[404042592,1769777425056,-1054.35,0.00043287,120]
[404042593,1769777425121,-1197.91,0.00043287,120]
[404042594,1769777425183,-500.0,0.00043287,120]
[404042595,1769777425250,-903.56,0.00043287,120]
[404042596,1769777425318,-716.6,0.00043287,120]
[404042597,1769777425382,-1197.91,0.00043287,120]
[404042598,1769777425445,-1054.35,0.00043287,120]
[404042599,1769777425507,-500.0,0.00043287,120]
[404042600,1769777425568,-716.6,0.00043287,120]
[404042601,1769777425630,-1197.91,0.00043287,120]
[404042602,1769777425689,-1054.35,0.00043287,120]
[404042603,1769777425748,-619.61566808,0.00043287,120]
[404042604,1769777425808,-716.6,0.00043287,120]
[404042605,1769777425867,-903.56,0.00043287,120]
[404042606,1769777425927,-1197.94618526,0.00043287,120]
[404042607,1769777425985,-1054.35,0.00043287,120]
[404042608,1769777426044,-500.0,0.00043287,120]
[404042609,1769777426104,-716.6,0.00043287,120]
[404042610,1769777426165,-903.56,0.00043287,120]
[404042611,1769777426227,-500.0,0.00043287,120]
[404042612,1769777426289,-716.6,0.00043287,120]
[404042613,1769777426354,-903.56,0.00043287,120]
[404042614,1769777426423,-500.0,0.00043287,120]
[404042615,1769777426488,-716.6,0.00043287,120]
[404042616,1769777426555,-903.56,0.00043287,120]
[404042617,1769777426617,-500.0,0.00043287,120]
[404042618,1769777426681,-716.6,0.00043287,120]
[404042619,1769777426744,-903.56,0.00043287,120]
[404042620,1769777426806,-500.0,0.00043287,120]
[404042621,1769777426872,-500.0,0.00043287,120]
[404042622,1769777426934,-716.6,0.00043287,120]
[404042623,1769777427000,-903.62433452,0.00043287,120]
[404042624,1769777427058,-315.17635692,0.00043287,120]
[404042625,1769777427120,-500.0,0.00043287,120]
[404042626,1769777427180,-716.6,0.00043287,120]
[404042627,1769777427236,-500.0,0.00043287,120]
[404042628,1769777427300,-716.6,0.00043287,120]
[404042629,1769777427368,-213.3282368,0.00043287,120]
[404042630,1769777427430,-716.6,0.00043287,120]
[404042631,1769777427490,-716.6,0.00043287,120]
[404042632,1769777427552,-716.6,0.00043287,120]
[404042633,1769777427612,-716.6,0.00043287,120]
[404042634,1769777427672,-716.6,0.00043287,120]
[404042635,1769777427731,-716.6,0.00043287,120]
[404042636,1769777427791,-716.6,0.00043287,120]
[404042637,1769777427851,-716.6,0.00043287,120]
[404042638,1769777427911,-500.0,0.00043287,120]
[404042639,1769777427973,-716.6,0.00043287,120]
[404042640,1769777428031,-500.0,0.00043287,120]
[404042641,1769777428091,-716.6,0.00043287,120]
[404042642,1769777428152,-750.68,0.00043287,120]
[404042643,1769777428211,-500.0,0.00043287,120]
[404042644,1769777428271,-716.6,0.00043287,120]
[404042645,1769777428332,-493.12747345,0.00043287,120]
[404042646,1769777428393,-500.0,0.00043287,120]
[404042647,1769777428458,-716.72187041,0.00043287,120]
[404042648,1769777428743,-750.68,0.00043287,120]
[404042649,1769777428804,-500.0,0.00043287,120]
[404042650,1769777428867,-750.68,0.00043287,120]
[404042651,1769777428930,-500.0,0.00043287,120]
[404042652,1769777428993,-500.0,0.00043287,120]
[404042653,1769777429059,-750.68,0.00043287,120]
[404042654,1769777429123,-500.0,0.00043287,120]
[404042655,1769777429183,-500.0,0.00043287,120]
[404042656,1769777429246,-750.68,0.00043287,120]
[404042657,1769777429310,-500.0,0.00043287,120]
[404042658,1769777429372,-500.0,0.00043287,120]
[404042659,1769777429435,-500.0,0.00043287,120]
[404042660,1769777429497,-750.68,0.00043287,120]
[404042661,1769777429557,-500.0,0.00043287,120]
[404042662,1769777429619,-500.0,0.00043287,120]
[404042663,1769777429679,-500.0,0.00043287,120]
[404042664,1769777429739,-750.68,0.00043287,120]
[404042665,1769777429796,-500.0,0.00043287,120]
[404042666,1769777429853,-321.71387651,0.00043287,120]
[404042667,1769777429909,-500.0,0.00043287,120]
[404042668,1769777429964,-750.68,0.00043287,120]
[404042669,1769777430019,-500.0,0.00043287,120]
[404042670,1769777430073,-1054.35,0.00043287,120]
[404042671,1769777430126,-500.0,0.00043287,120]
[404042672,1769777430180,-500.0,0.00043287,120]
[404042673,1769777430234,-500.0,0.00043287,120]
[404042674,1769777430290,-500.0,0.00043287,120]
[404042675,1769777430347,-750.68,0.00043287,120]
[404042676,1769777430405,-1501.33,0.00043287,120]
[404042677,1769777430469,-1054.35,0.00043287,120]
[404042678,1769777430528,-500.0,0.00043287,120]
[404042679,1769777430584,-500.0,0.00043287,120]
[404042680,1769777430645,-500.0,0.00043287,120]
[404042681,1769777430705,-750.68,0.00043287,120]
[404042682,1769777430764,-500.0,0.00043287,120]
[404042683,1769777430824,-1501.33,0.00043287,120]
[404042684,1769777430884,-1054.35,0.00043287,120]
[404042685,1769777430942,-500.0,0.00043287,120]
[404042686,1769777431000,-500.0,0.00043287,120]
[404042687,1769777431059,-500.0,0.00043287,120]
[404042688,1769777431121,-1501.33,0.00043287,120]
[404042689,1769777431180,-1054.35,0.00043287,120]
[404042696,1769777431238,-242.74390886,0.00043287,120]
[404042755,1769777468672,2010.72,0.00013344,2]
[404042756,1769777469233,300.0,0.00013502,2]
[404042757,1769777476289,1000.0,0.00013005,2]
[404042758,1769777498522,5144.81725821,0.0001298,2]
[404042759,1769777498546,10000.01,0.0001298,2]
[404042760,1769777498570,2821.88274179,0.0001298,2]
[404042761,1769777527856,257.0,0.0001298,2]
[404042762,1769777534385,-810.9975999,0.00013503,2]
[404042763,1769777534396,-815.82400348,0.00013503,2]
[404042764,1769777534408,-135154.45977437,0.00013503,2]
[404042765,1769777534419,-1186.5106101,0.00013503,2]
[404042766,1769777534433,-594.61795665,0.00013503,2]
[404042767,1769777534446,-271.414428,0.00013503,2]
[404042768,1769777534457,-869.56,0.00013503,2]
[404042769,1769777534468,-699.36702806,0.00013503,2]
[404042770,1769777534480,-2491.59768231,0.00013503,2]
[404042771,1769777534490,-1940.62432845,0.00013503,2]
[404042772,1769777534606,-3500.0,0.00013503,2]
[404042773,1769777534617,-951.09995283,0.00013503,2]
[404042774,1769777534636,-462.1300956,0.00013503,2]
[404042775,1769777534647,-1075.43,0.00013503,2]
[404042776,1769777536130,-695.28,0.00013503,2]
[404042777,1769777536142,-1800.0,0.00013503,2]
[404042778,1769777536181,-10511.73340072,0.00013503,2]
[404042779,1769777536216,-12200.0,0.00013503,2]
[404042780,1769777536227,-584.78573477,0.00013503,2]
[404042781,1769777536244,-14476.43664485,0.00013503,2]
[404042782,1769777536254,-500.0,0.00013603,2]
[404042783,1769777536263,-422.0522,0.00013603,2]
[404042784,1769777536272,-352.2569,0.00013603,2]
[404042785,1769777536282,-2035.09196333,0.0001363,2]
[404042786,1769777536750,-1809.50930101,0.0001363,2]
[404042787,1769777536760,-1362.31,0.00013699,2]
[404042788,1769777536769,-500.0,0.00013702,2]
[404042789,1769777536779,-500.0,0.00013702,2]
[404042790,1769777536788,-500.0,0.00013702,2]
[404042791,1769777536799,-500.0,0.00013702,2]
[404042792,1769777536808,-500.0,0.00013702,2]
[404042793,1769777536818,-500.0,0.00013702,2]
[404042794,1769777536828,-500.0,0.00013702,2]
[404042795,1769777536839,-154.69,0.00013702,2]
[404042796,1769777536848,-500.0,0.00013724,2]
[404042797,1769777536858,-311.92795525,0.00013724,2]
[404042798,1769777536868,-39.45888375,0.00013725,2]
[404042799,1769777536880,-378.66,0.00013725,2]
[404042800,1769777536891,-10067.64992968,0.00013725,2]
[404042801,1769777536911,-570.45106372,0.00013725,2]
[404042802,1769777536927,-260413.66570394,0.00013725,2]
[404042803,1769777536939,-36386.17774311,0.00013725,2]
[404042804,1769777536949,-2743.23718064,0.0001373,2]
[404042805,1769777536958,-7239.44632196,0.0001373,2]
[404042806,1769777536967,-3079.06,0.00013753,2]
[404042807,1769777536977,-718.9490466,0.00013786,2]
[404042808,1769777537320,-328.36626858,0.00013786,2]
[404042809,1769777537331,-924.7254168,0.00013786,2]
[404042810,1769777538375,-11048.82926802,0.00013786,2]
[404042811,1769777538385,-500.25,0.00013831,2]
[404042812,1769777538394,-929.56500748,0.00013911,2]
[404042813,1769777538403,-166.68,0.00013943,2]
[404042814,1769777538413,-154.69,0.00013976,2]
[404042815,1769777538423,-239.88573265,0.00013987,2]
[404042816,1769777538434,-150.0,0.00013987,2]
[404042817,1769777538446,-500.0,0.00013987,2]
[404042818,1769777538455,-150.0,0.00013987,2]
[404042819,1769777538464,-150.0,0.00013987,2]
[404042820,1769777538474,-150.0,0.00013987,2]
[404042821,1769777538483,-150.0,0.00013987,2]
[404042822,1769777538493,-150.0,0.00013987,2]
[404042823,1769777538502,-150.0,0.00013987,2]
[404042824,1769777538513,-150.0,0.00013987,2]
[404042825,1769777538522,-150.0,0.00013987,2]
[404042826,1769777538531,-150.0,0.00013987,2]
[404042827,1769777538540,-150.0,0.00013987,2]
[404042828,1769777538549,-150.0,0.00013987,2]
[404042829,1769777538558,-150.0,0.00013987,2]
[404042830,1769777538567,-150.0,0.00013987,2]
[404042831,1769777538576,-150.0,0.00013987,2]
[404042832,1769777538585,-500.0,0.00013987,2]
[404042833,1769777538595,-409.01131241,0.00013991,2]
[404042834,1769777538604,-150.0,0.00014042,2]
[404042835,1769777538613,-500.0,0.00014042,2]
[404042836,1769777538622,-150.0,0.00014042,2]
[404042837,1769777538631,-150.0,0.00014042,2]
[404042838,1769777538641,-150.0,0.00014042,2]
[404042839,1769777538650,-150.0,0.00014042,2]
[404042840,1769777538660,-150.0,0.00014042,2]
[404042841,1769777538669,-150.0,0.00014042,2]
[404042842,1769777538678,-200.0,0.00014042,2]
[404042843,1769777538687,-150.0,0.00014042,2]
[404042844,1769777538696,-150.0,0.00014042,2]
[404042845,1769777538706,-150.0,0.00014042,2]
[404042846,1769777538716,-200.0,0.00014097,2]
[404042847,1769777538726,-500.0,0.00014097,2]
[404042848,1769777538737,-200.0,0.00014097,2]
[404042849,1769777538746,-200.0,0.00014097,2]
[404042850,1769777538756,-200.0,0.00014097,2]
[404042851,1769777538766,-200.0,0.00014097,2]
[404042852,1769777538775,-200.0,0.00014097,2]
[404042853,1769777538784,-150.0,0.00014097,2]
[404042854,1769777538794,-200.0,0.00014097,2]
[404042855,1769777538803,-150.0,0.00014097,2]
[404042856,1769777538812,-267.0,0.00014097,2]
[404042857,1769777538822,-842.72991229,0.00014104,2]
[404042858,1769777539326,-1057.84533287,0.00014104,2]
[404042859,1769777539470,-1944.02601912,0.00014104,2]
[404042860,1769777539480,-500.0,0.00014151,2]
[404042861,1769777539490,-150.0,0.00014151,2]
[404042862,1769777539498,-150.0,0.00014151,2]
[404042863,1769777539508,-19.26355002,0.00014206,2]
[404042864,1769777546419,250.0,0.00013452,2]
[404042865,1769777564966,250.0,0.00013216,2]
[404042866,1769777565014,250.0,0.00013428,2]
[404042867,1769777578858,500.0,0.00013502,2]
[404042868,1769777579073,500.0,0.00013502,2]
[404042869,1769777579378,-222.5,0.000302,30]
[404042870,1769777579442,-1170.98,0.000345,30]
[404042871,1769777579505,-222.5,0.00035,30]
[404042872,1769777579568,-1870.0,0.00035616,120]
[404042873,1769777579627,-267.45765256,0.00036031,30]
[404042874,1769777579683,-158.53,0.00036783,120]
[404042875,1769777579741,-267.45765256,0.00037867,45]
[404042876,1769777579795,-216.780936,0.00038356,120]
[404042877,1769777579851,-216.780936,0.00038356,120]
[404042878,1769777580185,-216.780936,0.00038356,120]
[404042879,1769777580242,-434.168295,0.00038356,120]
[404042880,1769777580298,-434.168295,0.00038356,120]
[404042881,1769777580354,-434.168295,0.00038356,120]
[404042882,1769777580411,-216.780936,0.00038356,120]
[404042883,1769777580466,-216.780936,0.00038356,120]
[404042884,1769777580522,-434.168295,0.00038356,120]
[404042885,1769777580576,-216.780936,0.00038356,120]
[404042886,1769777580630,-434.168295,0.00038356,120]
[404042887,1769777580683,-216.780936,0.00038356,120]
[404042888,1769777580737,-434.168295,0.00038356,120]
[404042889,1769777580789,-216.780933,0.00038356,120]
[404042890,1769777580841,-434.168295,0.00038356,120]
[404042891,1769777580893,-151.0,0.00038356,120]
[404042892,1769777580945,-434.168295,0.00038356,120]
[404042893,1769777580998,-151.0,0.00038356,120]
[404042894,1769777581050,-434.168295,0.00038356,120]
[404042895,1769777581101,-151.0,0.00038356,120]
[404042896,1769777581152,-434.168295,0.00038356,120]
[404042897,1769777581202,-151.0,0.00038356,120]
[404042898,1769777581252,-434.168295,0.00038356,120]
[404042899,1769777581301,-151.0,0.00038356,120]
[404042900,1769777581352,-434.168295,0.00038356,120]
[404042901,1769777581404,-151.0,0.00038356,120]
[404042902,1769777581460,-434.168295,0.00038356,120]
[404042903,1769777581516,-151.0,0.00038356,120]
[404042904,1769777581573,-434.168295,0.00038356,120]
[404042905,1769777581629,-151.0,0.00038356,120]
[404042906,1769777581685,-434.168295,0.00038356,120]
[404042907,1769777581741,-151.0,0.00038356,120]
[404042908,1769777581797,-151.0,0.00038356,120]
[404042909,1769777581853,-434.168295,0.00038356,120]
[404042910,1769777581907,-151.0,0.00038356,120]
[404042911,1769777581958,-434.168295,0.00038356,120]
[404042912,1769777582010,-151.0,0.00038356,120]
[404042913,1769777582061,-434.168295,0.00038356,120]
[404042914,1769777582114,-434.168295,0.00038356,120]
[404042915,1769777582166,-198.17133,0.00038356,120]
[404042916,1769777582218,-434.168299,0.00038356,120]
[404042917,1769777582270,-167.384549,0.00038356,120]
[404042918,1769777582323,-151.0,0.00038356,120]
[404042919,1769777582378,-151.0,0.00038356,120]
[404042920,1769777582431,-166.075654,0.00038356,120]
[404042921,1769777582483,-151.0,0.00038356,120]
[404042922,1769777582541,-167.7384161,0.00038356,120]
[404042923,1769777582596,-151.0,0.00038356,120]
[404042924,1769777582648,-151.0,0.00038356,120]
[404042925,1769777582701,-294.422507,0.00038356,120]
[404042926,1769777582754,-151.0,0.00038356,120]
[404042927,1769777582807,-151.0,0.00038356,120]
[404042928,1769777582860,-151.0,0.00038356,120]
[404042929,1769777582915,-243.848887,0.00038356,120]
[404042930,1769777582967,-151.0,0.00038356,120]
[404042931,1769777583019,-151.0,0.00038356,120]
[404042932,1769777583072,-151.0,0.00038356,120]
[404042933,1769777583126,-151.0,0.00038356,120]
[404042934,1769777583182,-151.0,0.00038356,120]
[404042935,1769777583237,-151.0,0.00038356,120]
[404042936,1769777583291,-151.0,0.00038356,120]
[404042937,1769777583348,-151.0,0.00038356,120]
[404042938,1769777583407,-151.0,0.00038356,120]
[404042939,1769777583465,-151.0,0.00038356,120]
[404042940,1769777583523,-151.0,0.00038356,120]
[404042941,1769777583581,-151.0,0.00038356,120]
[404042942,1769777583638,-151.0,0.00038356,120]
[404042943,1769777583694,-151.0,0.00038356,120]
[404042944,1769777583747,-151.0,0.00038356,120]
[404042945,1769777583802,-195.466839,0.00038356,120]
[404042946,1769777583858,-195.080817,0.00038356,120]
[404042947,1769777583914,-195.080817,0.00038356,120]
[404042948,1769777583971,-195.080817,0.00038356,120]
[404042949,1769777584027,-195.080817,0.00038356,120]
[404042950,1769777584084,-195.080817,0.00038356,120]
[404042951,1769777584140,-195.080817,0.00038356,120]
[404042952,1769777584195,-195.080817,0.00038356,120]
[404042953,1769777584250,-195.080817,0.00038356,120]
[404042954,1769777584306,-195.080817,0.00038356,120]
[404042955,1769777584361,-195.080817,0.00038356,120]
[404042956,1769777584418,-195.080817,0.00038356,120]
[404042957,1769777584724,-195.080817,0.00038356,120]
[404042958,1769777584779,-195.080817,0.00038356,120]
[404042959,1769777584835,-195.080817,0.00038356,120]
[404042960,1769777584891,-195.080817,0.00038356,120]
[404042961,1769777584952,-195.080817,0.00038356,120]
[404042962,1769777585008,-195.080817,0.00038356,120]
[404042963,1769777585064,-195.080817,0.00038356,120]
[404042964,1769777585118,-195.080817,0.00038356,120]
[404042965,1769777585172,-195.080817,0.00038356,120]
[404042966,1769777585226,-151.0,0.00038356,120]
[404042967,1769777585281,-151.0,0.00038356,120]
[404042968,1769777585340,-151.0,0.00038356,120]
[404042969,1769777585396,-151.0,0.00038356,120]
[404042970,1769777585458,-151.0,0.00038356,120]
[404042971,1769777585513,-151.0,0.00038356,120]
[404042972,1769777585570,-151.0,0.00038356,120]
[404042973,1769777585626,-151.0,0.00038356,120]
[404042974,1769777585677,-687.600425,0.00038356,120]
[404042975,1769777585729,-151.0,0.00038356,120]
[404042976,1769777585781,-687.600425,0.00038356,120]
[404042977,1769777585834,-151.0,0.00038356,120]
[404042978,1769777585888,-687.600425,0.00038356,120]
[404042979,1769777585941,-687.600425,0.00038356,120]
[404042980,1769777585994,-687.600425,0.00038356,120]
[404042981,1769777586045,-687.600425,0.00038356,120]
[404042982,1769777586099,-687.600425,0.00038356,120]
[404042983,1769777586156,-687.600425,0.00038356,120]
[404042984,1769777586209,-720.887402,0.00038356,120]
[404042985,1769777586265,-687.600425,0.00038356,120]
[404042986,1769777586323,-720.887402,0.00038356,120]
[404042987,1769777586379,-687.600425,0.00038356,120]
[404042988,1769777586436,-720.887402,0.00038356,120]
[404042989,1769777586498,-720.887402,0.00038356,120]
[404042990,1769777586556,-687.600425,0.00038356,120]
[404042991,1769777586612,-720.887402,0.00038356,120]
[404042992,1769777586668,-687.600425,0.00038356,120]
[404042993,1769777586727,-720.887402,0.00038356,120]
[404042994,1769777586784,-687.600425,0.00038356,120]
[404042995,1769777586841,-720.887402,0.00038356,120]
[404042996,1769777586911,-720.887402,0.00038356,120]
[404042997,1769777586972,-687.600425,0.00038356,120]
[404042998,1769777587031,-720.887402,0.00038356,120]
[404042999,1769777587090,-687.600425,0.00038356,120]
[404043000,1769777587148,-720.887402,0.00038356,120]
[404043001,1769777587206,-687.600425,0.00038356,120]
[404043002,1769777587260,-720.887402,0.00038356,120]
[404043003,1769777587315,-687.600425,0.00038356,120]
[404043004,1769777587371,-720.887402,0.00038356,120]
[404043005,1769777587424,-687.600425,0.00038356,120]
[404043006,1769777587478,-687.600425,0.00038356,120]
[404043007,1769777587537,-720.887402,0.00038356,120]
[404043008,1769777587599,-687.600432,0.00038356,120]
[404043009,1769777587658,-720.887402,0.00038356,120]
[404043010,1769777587717,-720.887402,0.00038356,120]
[404043011,1769777587774,-720.887402,0.00038356,120]
[404043012,1769777587830,-720.887402,0.00038356,120]
[404043013,1769777587887,-720.887402,0.00038356,120]
[404043014,1769777587945,-720.887402,0.00038356,120]
[404043015,1769777588003,-720.887397,0.00038356,120]
[404043016,1769777588059,-151.0,0.00038356,120]
[404043017,1769777588114,-151.0,0.00038356,120]
[404043018,1769777588169,-151.0,0.00038356,120]
[404043019,1769777588224,-151.0,0.00038356,120]
[404043020,1769777588280,-298.952399,0.00038356,120]
[404043021,1769777588335,-151.0,0.00038356,120]
[404043022,1769777588390,-187.983285,0.00038356,120]
[404043023,1769777588442,-216.332057,0.00038356,120]
[404043024,1769777588504,-230.671618,0.00038356,120]
[404043025,1769777588555,-151.0,0.00038356,120]
[404043026,1769777588609,-151.0,0.00038356,120]
[404043027,1769777588662,-174.748868,0.00038356,120]
[404043028,1769777588716,-151.0,0.00038356,120]
[404043029,1769777588773,-191.157097,0.00038356,120]
[404043030,1769777588830,-151.0,0.00038356,120]
[404043031,1769777588886,-151.0,0.00038356,120]
[404043032,1769777588941,-151.0,0.00038356,120]
[404043033,1769777588993,-151.0,0.00038356,120]
[404043034,1769777589049,-151.0,0.00038356,120]
[404043035,1769777589107,-151.0,0.00038356,120]
[404043036,1769777589167,-151.0,0.00038356,120]
[404043037,1769777589225,-151.0,0.00038356,120]
[404043038,1769777589279,-151.0,0.00038356,120]
[404043039,1769777589335,-151.0,0.00038356,120]
[404043040,1769777589389,-151.0,0.00038356,120]
[404043041,1769777589442,-151.0,0.00038356,120]
[404043042,1769777589495,-151.0,0.00038356,120]
[404043043,1769777589551,-151.0,0.00038356,120]
[404043044,1769777589606,-151.0,0.00038356,120]
[404043045,1769777589656,-151.0,0.00038356,120]
[404043046,1769777589709,-151.0,0.00038356,120]
[404043047,1769777589763,-216.351141,0.00038356,120]
[404043048,1769777589817,-151.0,0.00038356,120]
[404043049,1769777589872,-151.0,0.00038356,120]
[404043050,1769777589928,-160.090694,0.00038356,120]
[404043051,1769777589980,-151.0,0.00038356,120]
[404043052,1769777590030,-247.413716,0.00038356,120]
[404043053,1769777590082,-151.0,0.00038356,120]
[404043054,1769777590133,-166.876691,0.00038356,120]
[404043055,1769777590186,-158.53,0.00038622,120]
[404043056,1769777590265,-267.45765256,0.00039888,45]
[404043057,1769777590320,-2500.0,0.00041715,60]
[404043058,1769777590374,-1400.0,0.00041715,60]
[404043059,1769777590429,-700.0,0.00041715,60]
[404043060,1769777590485,-150.0,0.00041918,120]
[404043061,1769777590543,-2500.0,0.00042263,60]
[404043062,1769777590602,-1400.0,0.00042263,60]
[404043063,1769777590658,-570.75,0.00042438,120]
[404043064,1769777590714,-570.75,0.00042575,120]
[404043065,1769777590768,-570.75,0.00042712,120]
[404043066,1769777590820,-2500.0,0.00042811,60]
[404043067,1769777590874,-1400.0,0.00042811,60]
[404043068,1769777590927,-570.75,0.00042849,120]
[404043069,1769777590982,-570.75,0.00042986,120]
[404043070,1769777591035,-570.75,0.00043123,120]
[404043071,1769777591093,-570.75,0.0004326,120]
[404043072,1769777591149,-220.0,0.00043286,120]
[404043073,1769777591200,-500.0,0.00043286,120]
[404043074,1769777591254,-300.0,0.00043286,120]
[404043075,1769777591309,-151.0,0.00043286,120]
[404043076,1769777591367,-220.0,0.00043286,120]
[404043077,1769777591423,-518.5,0.00043286,120]
[404043078,1769777591478,-300.0,0.00043286,120]
[404043079,1769777591533,-156.587,0.00043286,120]
[404043080,1769777591590,-220.0,0.00043286,120]
[404043081,1769777591649,-537.6845,0.00043286,120]
[404043082,1769777591706,-300.0,0.00043286,120]
[404043083,1769777591771,-162.380719,0.00043286,120]
[404043084,1769777591832,-220.0,0.00043286,120]
[404043085,1769777591896,-557.5788265,0.00043286,120]
[404043086,1769777591961,-168.3888056,0.00043286,120]
[404043087,1769777592020,-300.0,0.00043286,120]
[404043088,1769777592083,-220.0,0.00043286,120]
[404043089,1769777592145,-300.0,0.00043286,120]
[404043090,1769777592210,-578.20924308,0.00043286,120]
[404043091,1769777592276,-174.61919141,0.00043286,120]
[404043092,1769777592340,-151.0,0.00043286,120]
[404043093,1769777592407,-220.0,0.00043286,120]
[404043094,1769777592470,-300.0,0.00043286,120]
[404043095,1769777592535,-620.99672706,0.00043286,120]
[404043096,1769777592594,-151.0,0.00043286,120]
[404043097,1769777592668,-311.1,0.00043286,120]
[404043098,1769777592739,-220.0,0.00043286,120]
[404043099,1769777592799,-300.0,0.00043286,120]
[404043100,1769777592861,-181.08010149,0.00043286,120]
[404043101,1769777592919,-322.6107,0.00043286,120]
[404043102,1769777592973,-220.0,0.00043286,120]
[404043103,1769777593031,-151.0,0.00043286,120]
[404043104,1769777593087,-300.0,0.00043286,120]
[404043105,1769777593150,-187.78006525,0.00043286,120]
[404043106,1769777593226,-334.5472959,0.00043286,120]
[404043107,1769777593293,-220.0,0.00043286,120]
[404043108,1769777593362,-300.0,0.00043286,120]
[404043109,1769777593432,-194.72792766,0.00043286,120]
[404043110,1769777593498,-151.0,0.00043286,120]
[404043111,1769777593567,-220.0,0.00043286,120]
[404043112,1769777593633,-346.92554585,0.00043286,120]
[404043113,1769777593699,-300.0,0.00043286,120]
[404043114,1769777594891,-201.93286099,0.00043286,120]
[404043115,1769777594982,-151.0,0.00043286,120]
[404043116,1769777595037,-359.76179104,0.00043286,120]
[404043117,1769777595090,-220.0,0.00043286,120]
[404043118,1769777595140,-300.0,0.00043286,120]
[404043119,1769777595190,-209.40437684,0.00043286,120]
[404043120,1769777595239,-1516.59942717,0.00043286,120]
[404043121,1769777595291,-151.0,0.00043286,120]
[404043122,1769777595346,-163.98027982,0.00043286,120]
[404043123,1769777595402,-373.07297731,0.00043286,120]
[404043124,1769777595456,-300.0,0.00043286,120]
[404043125,1769777595507,-217.15233878,0.00043286,120]
[404043126,1769777595556,-151.0,0.00043286,120]
[404043127,1769777595607,-386.87667747,0.00043286,120]
[404043128,1769777595656,-300.0,0.00043286,120]
[404043129,1769777595705,-225.18697532,0.00043286,120]
[404043130,1769777595753,-275.13491137,0.00043286,120]
[404043131,1769777595802,-401.19111454,0.00043286,120]